bitfinex/quotes_ETHUSD_20260219
["timestamp","ask_amount","ask_price","bid_price","bid_amount"]
[1771522761545,3.23919528,1928.1,1927.4,2.70004793]
[1771522761752,1.29769937,1928.2,1927.4,2.70004793]
[1771522761981,0.0011,1928.2,1927.4,2.70004793]
[1771522762186,1.29766254,1928.2,1927.4,2.70004793]
[1771522762390,6.213167,1928.1,1927.4,2.70004793]
[1771522762755,1.29766254,1928.2,1927.4,2.70004793]
[1771522763364,1.29668049,1928.0,1927.5,1.29701686]
[1771522763562,1.29668049,1928.0,1927.4,2.70004793]
[1771522763773,1.29668049,1928.0,1927.4,0.001]
[1771522763774,1.92987775,1927.9,1927.4,0.001]
[1771522763959,1.92987775,1927.8,1927.4,0.001]
[1771522765987,1.29688229,1927.7,1927.4,0.001]
[1771522766392,3.22674452,1927.8,1927.4,0.001]
[1771522767650,1.91816721,1928.2,1927.4,2.70004793]
[1771522767856,1.29769467,1928.2,1927.4,2.70004793]
[1771522768093,1.91706721,1928.0,1927.4,0.001]
[1771522768396,1.91706721,1927.8,1927.4,0.001]
[1771522771303,1.90639058,1927.6,1927.0,3.99734902]
[1771522771480,1.29688229,1927.7,1927.0,3.99734902]
[1771522771683,1.29688229,1927.7,1927.0,0.001]
[1771522771684,19.90242495,1927.6,1927.0,0.001]
[1771522771884,25.346389,1927.5,1927.0,0.001]
[1771522772079,23.543191,1927.5,1927.0,0.001]
[1771522772279,1.90314095,1927.6,1927.0,0.001]
[1771522772280,1.90314095,1927.4,1927.0,0.001]
[1771522772500,1.90165673,1927.2,1926.6,2.69904793]
[1771522772715,16.751639,1927.1,1926.6,2.69904793]
[1771522773283,2.063897,1927.1,1926.7,2.69904793]
[1771522774006,2.063897,1927.1,1927.0,0.001]
[1771522774206,2.063897,1927.1,1926.5,4.93273568]
[1771522774700,2.063897,1927.1,1926.8,0.001]
[1771522774897,2.063897,1927.1,1926.5,4.9327314]
[1771522775096,2.063897,1927.1,1926.6,2.69904793]
[1771522775497,3.672989,1927.1,1926.7,2.69904793]
[1771522776088,5.56493391,1927.1,1926.5,0.935]
[1771522776290,1.89194491,1927.1,1926.5,0.935]
[1771522776585,10.681522,1926.9,1926.5,0.935]
[1771522776794,11.201122,1927.0,1926.5,0.935]
[1771522776995,5.496732,1926.9,1926.5,0.935]
[1771522777189,1.89194491,1927.1,1926.5,0.935]
[1771522777394,1.89194491,1927.1,1926.5,2.23268673]
[1771522777589,3.67166739,1927.0,1926.5,3.77849844]
[1771522777882,1.29735339,1927.0,1926.5,3.77849844]
[1771522778495,4.703799,1927.4,1926.6,2.84349844]
[1771522778682,1.29701686,1927.5,1926.6,2.84349844]
[1771522779095,2.627992,1927.4,1926.6,2.84349844]
[1771522779322,3.18054247,1927.5,1926.6,2.84349844]
[1771522779822,3.18054247,1927.5,1926.7,4.14105384]
[1771522780325,1.88023418,1927.3,1926.5,0.935]
[1771522780615,11.808058,1927.1,1926.6,2.84349844]
[1771522780824,3.86422,1927.3,1926.6,2.84349844]
[1771522781793,3.6682406,1927.3,1926.8,2.84349844]
[1771522782119,2.75683215,1927.8,1926.9,2.84349844]
[1771522782300,2.75683215,1927.6,1926.9,2.84349844]
[1771522783311,7.06298567,1927.3,1926.3,0.003]
[1771522783617,16.82583415,1926.9,1926.3,0.003]
[1771522783818,1.29748806,1926.8,1926.3,0.003]
[1771522784221,1.29748806,1926.8,1926.1,0.00300044]
[1771522784399,4.05432021,1926.8,1926.1,0.00300044]
[1771522784594,4.05432021,1926.8,1926.1,1.30095492]
[1771522786234,4.05432021,1926.8,1926.1,0.00300044]
[1771522786721,5.407541,1927.1,1926.3,2.84349844]
[1771522786924,4.722541,1926.9,1926.3,2.84349844]
[1771522787098,4.722541,1926.9,1926.4,0.001]
[1771522787298,7.47937315,1926.9,1926.4,0.001]
[1771522787496,2.75683215,1926.8,1926.4,0.001]
[1771522787701,2.101845,1926.9,1926.4,0.001]
[1771522788331,2.531492,1926.8,1926.4,0.001]
[1771522788700,4.05532201,1927.0,1926.4,0.001]
[1771522789519,6.732199,1926.9,1926.4,0.001]
[1771522789709,0.0011,1927.0,1926.4,2.84449844]
[1771522790323,0.0011,1927.0,1926.5,4.14118855]
[1771522790510,2.75793215,1927.0,1926.4,0.001]
[1771522793740,0.0011,1927.0,1926.5,2.84349844]
[1771522794403,0.0011,1927.0,1926.6,1.29762275]
[1771522794604,0.0011,1927.0,1926.6,4.14112119]
[1771522794803,0.0011,1927.0,1926.7,2.84349844]
[1771522795000,2.75683215,1927.4,1926.7,2.84349844]
[1771522795339,4.455179,1927.4,1926.7,2.84349844]
[1771522795630,2.75683215,1927.5,1926.7,2.84349844]
[1771522796105,7.834053,1927.6,1926.7,2.84349844]
[1771522796307,4.9989785,1927.7,1926.8,1.29748806]
[1771522796502,5.76278,1927.6,1926.9,2.84349844]
[1771522796707,6.03374202,1927.7,1926.9,2.84349844]
[1771522796908,7.192273,1927.6,1926.9,2.84349844]
[1771522797135,4.98862686,1927.9,1926.9,2.84349844]
[1771522797340,3.723808,1927.8,1926.9,2.84349844]
[1771522798431,3.723808,1927.8,1927.1,2.84349844]
[1771522798647,5.02062364,1927.8,1927.1,2.84349844]
[1771522798826,3.707056,1927.7,1927.1,2.84349844]
[1771522799019,3.994894,1927.8,1927.1,2.84349844]
[1771522799425,4.50088785,1927.8,1927.1,2.84349844]
[1771522799753,2.75683215,1927.6,1926.6,2.84349844]
[1771522800048,3.787133,1927.7,1926.6,2.84349844]
[1771522800234,2.75793215,1928.0,1926.6,2.84349844]
[1771522800435,2.478227,1927.9,1926.8,2.84349844]
[1771522800638,0.0011,1928.0,1926.8,2.84349844]
[1771522801555,1.29779413,1928.0,1926.8,2.84349844]
[1771522801752,4.21977156,1928.0,1926.8,2.84349844]
[1771522801927,11.00970839,1927.9,1926.8,2.84349844]
[1771522802123,0.0011,1928.0,1926.8,2.84349844]
[1771522802324,1.29778844,1928.0,1926.8,2.84349844]
[1771522802525,0.0011,1928.0,1927.0,2.81351277]
[1771522802725,0.0011,1928.0,1927.1,2.81351277]
[1771522803142,0.0011,1927.7,1927.1,2.81351277]
[1771522803452,0.0011,1928.0,1927.2,2.81351277]
[1771522803754,0.0011,1928.0,1927.1,2.81351277]
[1771522803957,0.0011,1928.2,1927.4,2.81351277]
[1771522804258,0.0011,1928.5,1927.6,2.81351277]
[1771522804426,0.0011,1928.5,1928.1,4.11012601]
[1771522804626,0.0011,1928.5,1928.2,2.81351277]
[1771522804832,0.0011,1928.6,1928.3,2.81351277]
[1771522805651,0.0011,1928.8,1928.2,2.81351277]
[1771522806347,1.29576898,1929.4,1928.2,2.81351277]
[1771522806553,1.29576898,1929.4,1928.4,2.81351277]
[1771522806554,2.92197839,1929.2,1928.4,2.81351277]
[1771522806856,2.71239523,1929.0,1928.2,4.04436399]
[1771522807155,4.11933,1929.2,1928.3,2.74787295]
[1771522807533,3.187959,1929.3,1928.5,2.74787295]
[1771522808255,4.00808118,1929.5,1928.5,2.74787295]
[1771522808482,4.00808118,1929.5,1928.7,2.74787295]
[1771522808645,4.00808118,1929.5,1928.6,1.29627709]
[1771522808646,2.71239523,1929.3,1928.6,1.29627709]
[1771522809661,2.71239523,1929.3,1928.6,4.04415004]
[1771522809834,1.2956932,1929.5,1928.6,4.04415004]
[1771522810033,2.3099,1929.4,1928.6,4.04415004]
[1771522810235,2.3099,1929.4,1928.7,2.74787295]
[1771522810547,1.29578778,1929.4,1928.8,1.29614267]
[1771522811566,2.780569,1929.4,1928.8,1.29614267]
[1771522811771,1.29557861,1929.7,1928.9,2.74787295]
[1771522811935,5.18790623,1929.4,1928.7,4.04402899]
[1771522812135,2.71239523,1929.4,1928.7,4.04402899]
[1771522812955,4.00813786,1929.4,1928.7,4.04402899]
[1771522814747,1.2956053,1929.6,1928.8,2.74787295]
[1771522814963,6.002836,1929.4,1928.8,2.74787295]
[1771522815363,2.71349523,1929.9,1929.0,2.74787295]
[1771522815560,2.71239523,1929.5,1928.8,4.043997]
[1771522815874,2.71239523,1929.5,1928.8,1.29612405]
[1771522816046,2.71239523,1929.5,1928.8,4.043997]
[1771522816482,0.0011,1929.3,1928.5,2.74787295]
[1771522816681,0.0011,1929.3,1928.6,2.74787295]
[1771522817577,0.0011,1929.3,1928.7,4.04408283]
[1771522817750,2.71349523,1929.3,1928.6,1.29623328]
[1771522818078,2.71349523,1929.3,1928.4,0.935]
[1771522818079,2.71239523,1929.1,1928.4,0.935]
[1771522818495,0.0011,1929.3,1928.4,0.935]
[1771522818496,2.71239523,1928.9,1928.4,0.935]
[1771522818735,0.0011,1929.3,1928.3,0.001]
[1771522818736,2.71239523,1928.7,1928.3,0.001]
[1771522819320,11.397662,1929.1,1928.3,1.29747417]
[1771522819496,2.71239523,1929.2,1928.4,2.74787295]
[1771522819682,2.71239523,1929.1,1928.4,1.29636342]
[1771522820280,1.29592532,1929.2,1928.4,4.04423637]
[1771522821291,2.761721,1929.2,1928.5,2.74787295]
[1771522821681,2.761721,1929.2,1928.6,1.29627709]
[1771522821884,4.133756,1929.2,1928.5,4.04417229]
[1771522822094,1.2969343,1929.3,1928.4,1.29641153]
[1771522822095,16.600975,1929.0,1928.4,1.29641153]
[1771522822292,2.71239523,1929.0,1928.3,1.29747876]
[1771522822715,0.0011,1929.3,1928.4,2.74787295]
[1771522822887,0.0011,1929.3,1928.5,2.74787295]
[1771522823795,0.0011,1929.3,1928.6,1.29627709]
[1771522824125,2.71349523,1929.3,1928.6,1.29627709]
[1771522825910,2.71349523,1929.3,1928.5,7.93298131]
[1771522826115,0.0011,1929.3,1928.6,2.74787295]
[1771522827148,0.0011,1929.4,1928.7,2.74787295]
[1771522827347,0.0011,1929.6,1928.8,2.74787295]
[1771522828250,0.0011,1929.6,1929.0,2.74787295]
[1771522829723,2.71349523,1929.6,1928.7,2.74787295]
[1771522830531,0.0011,1929.5,1928.9,2.74787295]
[1771522833234,0.0011,1930.1,1929.2,2.74787295]
[1771522833436,0.0011,1930.1,1929.4,2.74787295]
[1771522835415,0.0011,1930.1,1929.6,2.74787295]
[1771522836367,2.71349523,1930.1,1929.4,1.29570214]
[1771522836649,2.71349523,1930.1,1929.3,0.934]
[1771522836841,2.71349523,1930.1,1929.3,2.22980142]
[1771522837040,2.88999428,1929.9,1929.3,0.934]
[1771522837428,2.88999428,1929.7,1929.3,0.934]
[1771522839348,2.88999428,1929.5,1928.7,0.934]
[1771522839566,2.88999428,1929.5,1928.7,1.29616702]
[1771522839744,2.88999428,1929.5,1928.6,1.29622304]
[1771522842658,4.18573388,1929.4,1928.6,1.29622304]
[1771522843163,4.18573388,1929.4,1928.7,0.001]
[1771522843164,2.88999428,1929.1,1928.7,0.001]
[1771522843462,4.18573388,1929.4,1928.7,0.001]
[1771522843647,2.88999428,1929.4,1928.7,0.001]
[1771522843827,0.08192,1929.9,1928.7,0.001]
[1771522843828,2.88999428,1929.9,1928.7,2.75562114]
[1771522844031,0.0011,1930.0,1928.7,2.75562114]
[1771522844257,2.88999428,1929.8,1928.7,2.75562114]
[1771522844664,4.18552521,1929.8,1928.8,1.29614267]
[1771522844961,2.88999428,1929.7,1928.8,4.05076381]
[1771522846062,2.88999428,1929.7,1928.7,1.29716081]
[1771522846263,2.88999428,1929.5,1928.7,1.29716081]
[1771522847127,2.88999428,1929.5,1928.7,0.001]
[1771522847331,2.88999428,1929.5,1928.7,2.75562114]
[1771522847550,1.2955759,1929.7,1928.7,2.75562114]
[1771522848062,11.633274,1929.7,1928.7,2.75562114]
[1771522848263,9.294274,1929.7,1928.7,2.75562114]
[1771522848569,3.912408,1929.7,1928.7,2.75562114]
[1771522848734,2.056152,1929.7,1928.7,2.75562114]
[1771522848939,2.88999428,1929.6,1928.7,2.75562114]
[1771522850847,2.88999428,1928.7,1928.3,0.001]
[1771522851192,2.88999428,1928.3,1927.4,1.29704198]
[1771522851363,2.88999428,1928.7,1927.4,4.05166312]
[1771522851542,6.52287852,1928.8,1927.3,5.18845821]
[1771522851543,7.631163,1928.4,1927.3,2.21578055]
[1771522851738,2.88999428,1928.4,1927.4,1.29704198]
[1771522852848,4.18647304,1928.3,1927.4,1.29704198]
[1771522854948,4.18647304,1928.3,1927.3,3.51288083]
[1771522855353,4.18647304,1928.3,1927.4,0.001]
[1771522855656,0.0011,1928.2,1927.4,0.001]
[1771522856780,0.0011,1928.2,1927.4,2.44608422]
[1771522857183,0.0011,1928.2,1927.5,3.74210108]
[1771522857553,0.0011,1928.2,1927.6,2.44474126]
[1771522857755,0.0011,1928.2,1927.6,3.37874126]
[1771522857956,0.0011,1928.2,1927.7,2.44474126]
[1771522858157,0.0011,1928.3,1927.7,2.44474126]
[1771522859283,0.0011,1928.3,1927.9,2.44322132]
[1771522859964,0.0011,1928.5,1927.9,2.44322132]
[1771522860157,1.2959903,1929.1,1927.9,2.44322132]
[1771522860370,2.88999428,1929.2,1927.9,2.44322132]
[1771522860709,0.934,1929.6,1928.2,2.44231327]
[1771522860710,2.029166,1929.3,1928.2,2.44231327]
[1771522860992,2.029166,1929.3,1928.4,2.44184035]
[1771522861200,4.33087825,1929.2,1928.4,1.29641153]
[1771522861513,3.03495117,1929.1,1928.4,1.29641153]
[1771522862397,3.03495117,1929.1,1928.3,0.934]
[1771522862791,13.738306,1929.0,1928.3,2.23047628]
[1771522862986,3.03495117,1929.0,1928.3,2.23047628]
[1771522863495,4.3309947,1929.0,1928.3,2.23047628]
[1771522864217,3.03495117,1928.9,1928.3,0.934]
[1771522864519,3.03495117,1928.9,1928.3,2.23047288]
[1771522865690,4.33104928,1928.9,1928.3,2.23047288]
[1771522866485,3.03495117,1929.5,1928.3,2.23047288]
[1771522866712,8.31571769,1929.3,1928.3,4.67234559]
[1771522866910,2.99673369,1929.2,1928.3,4.67234559]
[1771522867516,2.99673369,1929.2,1928.4,2.44583488]
[1771522867687,2.99673369,1929.5,1928.4,2.44583488]
[1771522867886,4.29241683,1929.5,1928.6,2.44583488]
[1771522868333,0.0011,1928.8,1928.6,2.44583488]
[1771522868534,4.29241683,1929.5,1928.6,2.44583488]
[1771522868753,0.0011,1928.9,1928.6,2.44583488]
[1771522870038,0.0011,1928.9,1928.4,1.29641153]
[1771522870235,0.0011,1928.9,1928.4,3.74048482]
[1771522870611,0.0011,1928.9,1928.5,2.44317634]
[1771522871738,0.0011,1929.1,1928.5,2.44317634]
[1771522871937,0.0011,1929.1,1928.6,1.29627709]
[1771522875642,2.99673369,1929.0,1928.3,0.934]
[1771522875840,2.99673369,1929.0,1928.3,2.23046258]
[1771522876739,0.0011,1929.1,1928.4,2.4357993]
[1771522877816,0.0011,1929.1,1928.5,3.73096321]
[1771522878418,0.0011,1929.1,1928.6,2.43343625]
[1771522879448,0.0011,1929.1,1928.5,1.2963443]
[1771522879846,0.0011,1929.1,1928.4,5.18537723]
[1771522880145,2.99783369,1929.1,1928.4,5.18537723]
[1771522880647,2.99783369,1929.1,1928.4,1.29641153]
[1771522881234,2.99783369,1929.1,1928.4,1.29741153]
[1771522881446,2.99783369,1929.0,1928.4,1.29741153]
[1771522881947,1.29607548,1928.9,1928.4,1.29741153]
[1771522882247,2.99673369,1928.9,1928.4,1.29741153]
[1771522883351,0.0011,1929.0,1928.4,1.29741153]
[1771522883522,0.0011,1929.0,1928.4,3.7244109]
[1771522885150,0.0011,1929.0,1928.5,2.42563184]
[1771522885452,0.0011,1929.3,1928.5,2.42453184]
[1771522885649,2.99783369,1929.3,1928.5,2.42453184]
[1771522886226,4.29364579,1929.3,1928.5,2.42453184]
[1771522887548,2.99673369,1929.2,1928.5,1.29629643]
[1771522888650,2.99673369,1929.0,1928.4,1.2973754]
[1771522889157,2.99673369,1929.0,1928.4,1.29741132]
[1771522889459,2.99673369,1928.9,1928.4,1.29741147]
[1771522889662,4.29266524,1929.2,1928.4,1.29741147]
[1771522890070,2.99673369,1929.1,1928.4,1.29741147]
[1771522890576,2.99673369,1929.1,1928.4,0.001]
[1771522891433,4.29286313,1928.9,1928.4,0.001]
[1771522892040,2.99673369,1928.8,1928.4,0.001]
[1771522892237,4.29272812,1929.1,1928.4,0.001]
[1771522893632,2.99673369,1928.9,1928.4,0.001]
[1771522894260,2.99673369,1928.9,1928.5,0.001]
[1771522896241,0.0011,1929.0,1928.5,0.001]
[1771522898729,0.0011,1929.0,1928.5,2.40676153]
[1771522900242,0.0011,1929.0,1928.6,3.70030024]
[1771522903673,0.0011,1929.1,1928.7,2.39687271]
[1771522903842,0.0011,1929.1,1928.6,1.29627709]
[1771522904048,2.8398442,1929.1,1928.6,1.29627709]
[1771522906482,4.13579222,1929.1,1928.6,1.29627709]
[1771522906683,4.13579222,1929.1,1928.5,0.001]
[1771522906684,2.8387442,1929.0,1928.5,0.001]
[1771522907474,4.13582135,1929.1,1928.5,1.29732147]
[1771522907677,2.8387442,1929.0,1928.5,1.29732147]
[1771522907977,2.8398442,1929.0,1928.6,0.001]
[1771522909383,4.13585655,1929.0,1928.6,0.001]
[1771522910283,2.8398442,1929.0,1928.6,0.001]
[1771522911377,2.8387442,1928.9,1928.6,0.001]
[1771522912367,4.13482942,1928.9,1928.6,0.001]
[1771522913669,0.0011,1929.0,1928.6,2.37761358]
[1771522914172,0.0011,1929.0,1928.7,1.29620988]
[1771522914978,0.0011,1929.0,1928.6,5.18602748]
[1771522915279,0.0011,1929.0,1928.6,0.001]
[1771522915280,2.8398442,1929.0,1928.6,0.001]
[1771522916072,1.29607548,1928.9,1928.6,0.001]
[1771522916380,1.29607548,1928.9,1928.2,8.49358026]
[1771522916381,2.8387442,1928.6,1927.7,1.29686058]
[1771522917165,2.8387442,1928.6,1927.7,3.66844449]
[1771522917359,2.8387442,1928.6,1927.8,2.37158391]
[1771522918270,4.13505883,1928.6,1927.9,1.29674775]
[1771522919383,2.8387442,1928.5,1927.9,1.29674775]
[1771522919983,2.8387442,1928.5,1928.0,0.001]
[1771522920963,2.93720236,1928.7,1928.0,0.001]
[1771522921489,2.93720236,1928.5,1928.0,0.001]
[1771522922283,1.29619811,1928.8,1928.0,2.36446009]
[1771522922284,2.93720236,1928.8,1928.0,2.36446009]
[1771522922587,0.0011,1928.9,1928.2,2.36130347]
[1771522922787,0.0011,1928.9,1928.4,2.36130347]
[1771522924465,0.0011,1929.0,1928.6,2.35802565]
[1771522926380,0.0011,1929.1,1928.8,2.35146486]
[1771522926569,0.0011,1929.3,1928.8,2.35146486]
[1771522926769,4.06048163,1930.0,1928.9,2.34927886]
[1771522926969,4.06048163,1930.0,1929.1,2.34927886]
[1771522927183,0.0011,1930.0,1929.1,2.34927886]
[1771522927993,0.0011,1930.0,1929.2,2.35119888]
[1771522928373,0.0011,1930.2,1930.0,1.29533678]
[1771522929180,0.0011,1930.2,1929.9,3.64655224]
[1771522929368,0.0011,1930.2,1929.8,2.22940537]
[1771522929567,0.0011,1930.2,1929.8,4.57622248]
[1771522930679,0.0011,1930.2,1929.9,2.344526]
[1771522931187,0.0011,1930.2,1929.8,2.22940537]
[1771522932279,2.76511893,1930.2,1929.8,0.934]
[1771522932479,2.76511893,1930.2,1929.8,2.22946578]
[1771522933493,0.0011,1930.1,1929.8,2.22946578]
[1771522935190,0.0011,1930.2,1929.8,4.56445931]
[1771522935796,0.0011,1930.4,1929.8,4.56445931]
[1771522936613,0.0011,1930.4,1929.9,2.32893236]
[1771522936909,0.0011,1930.7,1930.0,2.32893236]
[1771522937108,0.0011,1930.7,1930.2,2.32893236]
[1771522937730,0.0011,1930.9,1930.2,2.32893236]
[1771522939014,0.0011,1930.9,1930.4,2.3240182]
[1771522941026,0.0011,1930.9,1930.5,3.61399785]
[1771522941528,0.0011,1930.9,1930.5,2.22900129]
[1771522942224,0.0011,1930.9,1930.5,4.54544763]
[1771522942725,0.0011,1930.9,1930.6,2.31388768]
[1771522942903,2.76401893,1931.4,1930.6,2.31388768]
[1771522943223,2.76401893,1931.4,1930.7,3.60875482]
[1771522943623,2.76401893,1931.3,1930.7,1.29486714]
[1771522944431,2.76401893,1931.3,1930.6,1.29488762]
[1771522945503,2.76401893,1931.2,1930.6,1.29488762]
[1771522945831,2.76401893,1931.2,1930.6,3.60112781]
[1771522946124,2.76401893,1931.2,1930.7,0.001]
[1771522946333,2.76511893,1931.2,1930.7,0.001]
[1771522948535,2.76511893,1931.2,1930.7,0.03517049]
[1771522948716,0.0011,1931.2,1930.7,2.3335816]
[1771522949332,2.76511893,1931.2,1930.7,2.29941111]
[1771522949631,2.76401893,1931.1,1930.5,2.22999269]
[1771522950905,2.76401893,1931.1,1930.5,4.52419259]
[1771522951752,0.0011,1931.2,1930.6,2.29161375]
[1771522952408,2.76511893,1931.2,1930.6,2.29161375]
[1771522953554,2.76401893,1931.1,1930.5,2.22999269]
[1771522954542,2.76401893,1931.1,1930.5,0.935]
[1771522954945,2.76401893,1931.1,1930.5,2.22998374]
[1771522955246,2.76401893,1931.1,1930.5,0.935]
[1771522955643,2.76401893,1930.9,1930.5,0.935]
[1771522957161,2.76401893,1930.9,1930.0,1.29528404]
[1771522957669,2.76401893,1930.9,1930.0,4.03605603]
[1771522957831,2.93433735,1930.8,1930.1,2.74077199]
[1771522959159,2.93433735,1930.8,1930.6,0.001]
[1771522959935,4.22920449,1930.7,1930.6,0.001]
[1771522960134,2.93433735,1930.6,1930.3,0.001]
[1771522961952,2.93433735,1930.5,1930.3,0.001]
[1771522962262,2.93433735,1930.8,1930.3,0.001]
[1771522962561,0.0011,1930.9,1930.3,2.74177199]
[1771522964174,0.0011,1930.9,1930.4,4.03584036]
[1771522965167,0.0011,1930.9,1930.5,2.74077199]
[1771522965778,6.11142694,1931.5,1930.5,2.74077199]
[1771522965779,3.416804,1931.4,1930.7,2.74077199]
[1771522966073,2.93433735,1931.8,1930.8,2.74077199]
[1771522966273,2.93433735,1931.8,1931.0,2.74077199]
[1771522967473,2.93433735,1931.7,1931.0,2.74077199]
[1771522968043,5.63109857,1931.9,1931.0,2.74077199]
[1771522968241,5.63109857,1931.9,1931.2,2.74077199]
[1771522969560,6.51691099,1932.6,1931.2,2.74077199]
[1771522969561,2.93433735,1932.1,1931.2,2.74077199]
[1771522969773,2.93433735,1932.6,1931.5,2.74077199]
[1771522970077,2.93433735,1933.3,1931.5,2.74077199]
[1771522970382,2.93433735,1933.3,1932.5,2.74077199]
[1771522970598,2.55864111,1933.9,1932.6,3.67377199]
[1771522970599,2.93433735,1933.6,1932.6,3.67377199]
[1771522970875,2.93433735,1933.5,1932.6,0.933]
[1771522971054,2.93433735,1933.5,1932.7,2.74077199]
[1771522971836,5.17125562,1933.8,1932.7,2.74077199]
[1771522971837,2.93433735,1933.8,1932.7,2.74077199]
[1771522972446,2.93433735,1933.8,1932.9,2.74077199]
[1771522972642,4.22713292,1933.8,1932.9,2.74077199]
[1771522973440,2.93433735,1933.7,1932.8,1.29346026]
[1771522973858,2.93433735,1933.7,1932.8,4.03423225]
[1771522974363,4.22721828,1933.7,1932.8,4.03423225]
[1771522975048,2.93433735,1933.7,1932.8,4.03423225]
[1771522975252,4.22719583,1933.7,1932.8,4.03423225]
[1771522975447,4.227202,1933.7,1932.8,4.03423225]
[1771522976981,2.93433735,1933.6,1932.8,4.03423225]
[1771522977187,2.93433735,1933.6,1932.8,1.29346026]
[1771522977376,2.93433735,1933.6,1932.7,5.17384105]
[1771522977377,2.93433735,1933.6,1932.7,1.29348676]
[1771522977851,2.93433735,1933.6,1932.6,0.933]
[1771522978181,2.93433735,1933.2,1932.6,2.2265927]
[1771522978369,2.93433735,1933.2,1932.6,0.933]
[1771522978575,4.22759688,1933.1,1932.6,0.933]
[1771522979456,2.93433735,1933.1,1932.6,2.22658107]
[1771522980397,2.93433735,1933.1,1932.6,2.22658789]
[1771522980557,4.22761092,1933.1,1932.6,0.933]
[1771522980985,2.93433735,1933.0,1932.6,0.933]
[1771522981182,2.82081455,1933.4,1932.6,2.22657957]
[1771522982574,4.11394029,1933.3,1932.6,2.22657957]
[1771522983867,4.11394029,1933.3,1932.6,5.0510823]
[1771522984567,2.82081455,1933.3,1932.6,5.0510823]
[1771522984995,4.11394946,1933.3,1932.6,5.0510823]
[1771522985496,2.82081455,1933.2,1932.6,5.0510823]
[1771522985693,2.82081455,1933.2,1932.6,0.933]
[1771522985863,5.02028655,1933.1,1932.6,2.22657553]
[1771522986065,2.82081455,1933.1,1932.6,2.22657553]
[1771522986467,2.82081455,1933.1,1932.6,0.933]
[1771522986685,4.11410415,1933.1,1932.6,2.22658679]
[1771522986886,4.11410415,1933.1,1932.6,2.226594]
[1771522987087,4.11410415,1933.1,1932.6,0.933]
[1771522987302,2.88692408,1933.0,1932.6,0.933]
[1771522987868,0.0011,1933.4,1932.7,2.8280527]
[1771522988085,1.29416793,1933.4,1932.7,2.8280527]
[1771522988295,4.18109201,1933.4,1932.7,2.8280527]
[1771522988910,4.18109201,1933.4,1932.8,1.29346026]
[1771522989063,2.88692408,1933.3,1932.6,0.933]
[1771522989262,2.88692408,1933.3,1932.6,2.22658295]
[1771522989466,2.88692408,1933.3,1932.6,0.933]
[1771522989900,2.88692408,1933.1,1932.6,0.933]
[1771522990200,2.88692408,1933.1,1932.2,1.29383386]
[1771522990406,2.88692408,1933.1,1932.1,4.12196716]
[1771522990706,2.88692408,1932.9,1932.0,1.29394301]
[1771522990871,2.88692408,1932.7,1932.0,1.29394301]
[1771522991193,2.88692408,1932.7,1931.9,5.05408604]
[1771522992065,2.88692408,1932.7,1931.9,2.22603334]
[1771522992265,2.88692408,1932.7,1932.0,2.8280527]
[1771522992471,2.88692408,1933.0,1932.0,2.8280527]
[1771522992968,2.88692408,1932.8,1932.1,1.29392888]
[1771522993170,2.88692408,1932.8,1932.0,4.12200137]
[1771522993399,2.88692408,1932.6,1932.0,1.29394867]
[1771522995291,4.18058514,1932.5,1931.9,2.22602262]
[1771522996192,2.88692408,1932.5,1931.9,2.22602262]
[1771522997401,2.88692408,1932.5,1931.9,5.05407532]
[1771522997900,4.18045958,1932.7,1932.0,2.8280527]
[1771522998501,5.17330027,1933.1,1932.0,2.8280527]
[1771522998502,2.88692408,1932.9,1932.0,2.8280527]
[1771522999271,2.88692408,1932.9,1932.2,2.8280527]
[1771522999500,0.0011,1933.0,1932.2,2.8280527]
[1771522999891,1.29443211,1933.0,1932.2,2.8280527]
[1771523000085,0.0011,1933.0,1932.2,2.8280527]
[1771523000282,1.29444066,1933.0,1932.2,2.8280527]
[1771523000905,2.88692408,1932.9,1932.2,2.8280527]
[1771523001122,2.88692408,1932.9,1932.1,1.29392888]
[1771523001626,4.18038434,1932.8,1932.1,1.29392888]
[1771523002382,2.88692408,1934.0,1932.8,2.81197166]
[1771523002685,5.17010649,1934.2,1932.9,0.932]
[1771523002686,2.88692408,1933.8,1932.9,0.932]
[1771523003999,2.88692408,1933.6,1933.0,1.29332643]
[1771523005308,2.88692408,1933.6,1932.9,2.22533896]
[1771523005686,2.88692408,1933.6,1932.9,0.932]
[1771523005908,1.29285825,1933.7,1932.5,1.29360892]
[1771523005909,2.88692408,1933.4,1932.5,1.29360892]
[1771523006082,2.88692408,1933.2,1932.5,1.29360892]
[1771523006890,2.88692408,1933.1,1932.2,2.8280527]
[1771523007317,2.88692408,1932.9,1932.1,1.29392888]
[1771523007811,2.88692408,1932.9,1932.0,1.29395053]
[1771523008225,2.88692408,1932.7,1932.0,1.29395053]
[1771523010322,1.29359412,1932.6,1931.9,5.17613106]
[1771523010508,4.1805182,1932.6,1931.9,5.17613106]
[1771523011314,2.88692408,1932.5,1931.8,2.22612014]
[1771523011792,2.88692408,1932.5,1931.8,0.932]
[1771523012119,2.88692408,1932.5,1932.1,0.001]
[1771523012517,2.88692408,1932.3,1932.1,0.001]
[1771523013995,2.88692408,1932.3,1931.8,0.933]
[1771523014201,2.88692408,1932.3,1931.6,0.001]
[1771523014595,2.88692408,1932.0,1931.6,0.001]
[1771523016632,2.88692408,1931.9,1931.6,0.001]
[1771523016932,2.88692408,1931.9,1931.3,0.0069287]
[1771523018120,2.58774335,1931.9,1931.3,0.0069287]
[1771523018301,2.84429106,1931.8,1931.3,0.0069287]
[1771523018726,1.29419682,1931.7,1931.3,0.0069287]
[1771523018946,2.84429106,1931.6,1931.3,0.0069287]
[1771523020104,2.84429106,1931.4,1930.6,3.99671622]
[1771523020515,2.84429106,1931.9,1930.9,2.70181431]
[1771523020834,4.1382357,1932.1,1931.1,2.70181431]
[1771523021136,2.84429106,1932.0,1931.1,2.70181431]
[1771523021332,2.84429106,1931.9,1931.0,1.29466597]
[1771523023443,2.84429106,1931.9,1931.0,2.70181431]
[1771523024911,4.13818412,1932.2,1931.0,2.70181431]
[1771523025215,2.84429106,1932.1,1931.0,2.70181431]
[1771523025416,4.13824328,1932.1,1931.2,2.70181431]
[1771523025732,5.07013734,1932.3,1931.2,2.70181431]
[1771523025933,2.84429106,1932.2,1931.2,2.70181431]
[1771523026427,0.0011,1931.9,1931.2,2.70181431]
[1771523027131,0.0011,1931.9,1931.1,1.29559893]
[1771523027132,2.84539106,1931.9,1931.1,1.29559893]
[1771523028207,2.84429106,1931.8,1931.1,1.29559893]